{"text_format":"3","workbook":"xlsx","n_sheets":2,"sheets":["POČETAK","ALAT ZA PRORAČUN"],"not_rendered":{"defined_names":2},"read":"whole","date_system":"1900"}

{"sheet":"POČETAK","index":0,"n_rows":7,"n_cols":2,"rows_kept":7}
[null,"O OVOM PREDLOŠKU"]
[null,"Pratite početna ulaganja u web-mjesta, njihove prinosi i troškovi prodaje pomoću ovog alat za stvaranje proračuna za web-mjesta."]
[null,"Unesite naziv tvrtke i datum."]
[null,"Unesite pojedinosti u tablice da biste automatski izračunali ukupni iznosi i metrika procjene."]
[null,"Napomena:  "]
[null,"dodatne su upute navedene u stupcu A na svakom radnom listu ALAT ZA PRORAČUN. Ovaj je tekst namjerno skriven. Da biste uklonili tekst, odaberite stupac A, a zatim odaberite IZBRIŠI. Da biste otkrili tekst, odaberite stupac A, a zatim promijenite boju fonta."]
[null,"Da biste saznali više o tablicama na radnom listu, pritisnite SHIFT i zatim F10 na tablici pa odaberite mogućnost TABLICA i potom ZAMJENSKI TEKST."]

{"sheet":"ALAT ZA PRORAČUN","index":1,"n_rows":43,"n_cols":6,"rows_kept":43,"merged":[[14,1,14,5],[22,1,22,5],[30,1,30,5],[38,1,38,5]]}
["Na ovom radnom listu stvorite proračun za web-mjesta. Korisne upute za korištenje ovog radnog lista nalaze se u ćelijama u ovom stupcu. Pomoću tipke sa strelicom prema dolje počnite s radom."]
["U ćeliju zdesna unesite naziv tvrtke.","Naziv tvrtke"]
["U ćeliji zdesna nalazi se naslov ovog radnog lista.","Alat za stvaranje proračuna za web-mjesta"]
["U ćeliju zdesna unesite datum.","Datum"]
["U ćeliji zdesna nalazi se savjet.","Sive ćelije sadrže izračune koji se ne smiju mijenjati."]
["Unesite podatke u tablicu Stopa, koja počinje od ćelije zdesna. Sljedeća se uputa nalazi u ćeliji A10.","Tvrtkini podaci","Cijena"]
[null,"Obavezna stopa povrata",{"v":0.1,"d":"10%"}]
[null,"Porezna stopa",{"v":0.3,"d":"30%"}]
[]
["Unesite podatke u tablicu Početno ulaganje, koja počinje od ćelije zdesna. Sljedeća se uputa nalazi u ćeliji A16.","Početno ulaganje u web-mjesto","GODINA","1","2","3"]
[null,"Hardver (npr. poslužitelji)",{"v":25000,"d":"25,000.00 kn"}]
[null,"Softver (npr. softver za katalog za e-trgovinu)",{"v":15000,"d":"15,000.00 kn"}]
[null,"Razvoj (npr. dizajn i razvoj web-mjesta trećih strana)",{"v":150000,"d":"150,000.00 kn"}]
[null,"Ukupna početna ulaganja",{"$f":"SUBTOTAL(109,PočetnoUlaganje[GODINA])","v":{"v":190000,"d":"190,000.00 kn"}}]
[]
["Unesite podatke u tablicu Pogodnosti, koja počinje od ćelije zdesna. Sljedeća se uputa nalazi u ćeliji A24.","Pogodnosti web-mjesta","GODINA","1","2","3"]
[null,"Izravna prodaja",null,{"v":15000,"d":"15,000.00 kn"},{"v":50000,"d":"50,000.00 kn"},{"v":75000,"d":"75,000.00 kn"}]
[null,"Povećanje prodaje koje je rezultat povećane učinkovitosti promotivnih akcija / prodajnog predstavnika",null,{"v":25000,"d":"25,000.00 kn"},{"v":25000,"d":"25,000.00 kn"},{"v":25000,"d":"25,000.00 kn"}]
[null,"Povećanje prodaje koje je rezultat povećane angažiranosti partnera",null,{"v":25000,"d":"25,000.00 kn"},{"v":25000,"d":"25,000.00 kn"},{"v":25000,"d":"25,000.00 kn"}]
[null,"Smanjeni putni troškovi",null,{"v":25000,"d":"25,000.00 kn"},{"v":25000,"d":"25,000.00 kn"},{"v":25000,"d":"25,000.00 kn"}]
[null,"Smanjeni troškovi službe za korisnike",null,{"v":50000,"d":"50,000.00 kn"},{"v":50000,"d":"50,000.00 kn"},{"v":50000,"d":"50,000.00 kn"}]
[null,"Ukupne pogodnosti",null,{"$f":"SUBTOTAL(109,Prinosi[1])","v":{"v":140000,"d":"140,000.00 kn"}},{"$f":"SUBTOTAL(109,Prinosi[2])","v":{"v":175000,"d":"175,000.00 kn"}},{"$f":"SUBTOTAL(109,Prinosi[3])","v":{"v":200000,"d":"200,000.00 kn"}}]
[]
["Unesite podatke u tablicu Troškovi, koja počinje od ćelije zdesna. Vrijednosti se automatski izračunavaju u ćelijama koje sadrže formule. Sljedeće se upute nalaze u ćeliji A32.","Troškovi (bez početnih ulaganja kapitala)","GODINA","1","2","3"]
[null,"Trošak prodaje",null,{"v":7500,"d":"7,500.00 kn"},{"v":25000,"d":"25,000.00 kn"},{"v":37500,"d":"37,500.00 kn"}]
[null,"Održavanje",null,{"v":15000,"d":"15,000.00 kn"},{"v":15000,"d":"15,000.00 kn"},{"v":15000,"d":"15,000.00 kn"}]
[null,"Upravljanje projektima, podrška za korisnike",null,{"v":35000,"d":"35,000.00 kn"},{"v":35000,"d":"35,000.00 kn"},{"v":35000,"d":"35,000.00 kn"}]
[null,"Mrežno oglašavanje, registracija modula za pretraživanje",null,{"v":10000,"d":"10,000.00 kn"},{"v":10000,"d":"10,000.00 kn"},{"v":10000,"d":"10,000.00 kn"}]
[null,"Amortizacija potrošnje kapitala (izračun na temelju razdoblja od tri godine)",null,{"$f":"PočetnoUlaganje[[#Totals],[GODINA]]/3","v":{"v":63333.333333333336,"d":"63,333.33 kn"}},{"$f":"PočetnoUlaganje[[#Totals],[GODINA]]/3","v":{"v":63333.333333333336,"d":"63,333.33 kn"}},{"$f":"PočetnoUlaganje[[#Totals],[GODINA]]/3","v":{"v":63333.333333333336,"d":"63,333.33 kn"}}]
[null,"Ukupni troškovi",null,{"$f":"SUBTOTAL(109,Troškovi[1])","v":{"v":130833.33333333334,"d":"130,833.33 kn"}},{"$f":"SUBTOTAL(109,Troškovi[2])","v":{"v":148333.33333333334,"d":"148,333.33 kn"}},{"$f":"SUBTOTAL(109,Troškovi[3])","v":{"v":160833.33333333334,"d":"160,833.33 kn"}}]
[]
["Ukupni su iznosi automatski izračunati u tablici Ukupni iznosi koja počinje ćelijom zdesna. Sljedeće se upute nalaze u ćeliji A40.","Ukupni iznosi","GODINA","1","2","3"]
[null,"Neto pogodnosti (troškovi)",null,{"$f":"Prinosi[[#Totals],[1]]-Troškovi[[#Totals],[1]]","v":{"v":9166.666666666657,"d":"9,166.67 kn"}},{"$f":"Prinosi[[#Totals],[2]]-Troškovi[[#Totals],[2]]","v":{"v":26666.666666666657,"d":"26,666.67 kn"}},{"$f":"Prinosi[[#Totals],[3]]-Troškovi[[#Totals],[3]]","v":{"v":39166.66666666666,"d":"39,166.67 kn"}}]
[null,"Porez",null,{"$f":"D33*PoreznaStopa","v":{"v":2749.999999999997,"d":"2,750.00 kn"}},{"$f":"E33*PoreznaStopa","v":{"v":7999.999999999996,"d":"8,000.00 kn"}},{"$f":"F33*PoreznaStopa","v":{"v":11749.999999999996,"d":"11,750.00 kn"}}]
[null,"Vrijednost nakon oporezivanja",null,{"$f":"D33-D34","v":{"v":6416.666666666661,"d":"6,416.67 kn"}},{"v":18666.66666666666,"d":"18,666.67 kn"},{"v":27416.66666666666,"d":"27,416.67 kn"}]
[null,"Vraćena amortizacija",null,{"$f":"D29","v":{"v":63333.333333333336,"d":"63,333.33 kn"}},{"$f":"E29","v":{"v":63333.333333333336,"d":"63,333.33 kn"}},{"$f":"F29","v":{"v":63333.333333333336,"d":"63,333.33 kn"}}]
[null,"Protok novca",{"$f":"-PočetnoUlaganje[[#Totals],[GODINA]]","v":{"v":-190000,"d":"-190,000.00 kn"}},{"$f":"D35+D36","v":{"v":69750,"d":"69,750.00 kn"}},{"v":82000,"d":"82,000.00 kn"},{"v":90750,"d":"90,750.00 kn"}]
[null,"Kumulativni protok novca",{"$f":"C37","v":{"v":-190000,"d":"-190,000.00 kn"}},{"$f":"C38+D37","v":{"v":-120250,"d":"-120,250.00 kn"}},{"v":-38250,"d":"-38,250.00 kn"},{"v":52500,"d":"52,500.00 kn"}]
[]
["Metrika procjene automatski se izračunava u tablici Metrika koja počinje ćelijom zdesna.","Metrika procjene","Vrijednosti"]
[null,"Neto sadašnja vrijednost (NPV)",{"$f":"C37+(NPV(StopaPovrata,D37:F37))","v":{"v":9359.504132231377,"d":"9,359.50 kn"}}]
[null,"Interna stopa povrata (IRR)",{"$f":"IRR(C37:F37)","v":{"v":0.12655165144706393,"d":"12.66%"}}]
[null,"Razdoblje otplate (u godinama)",{"$f":"IF(F38<=0,\"Prekoračuje 3 godine\",IF(E38<=0,(F37-F38)/F37+2,IF(D38<=0,(E37-E38)/E37+1,IF(C38<=0,(D37-D38)/D37,\"ND\"))))","v":{"v":2.4214876033057853,"d":"2.42"}}]